bitfinex-derivatives/quotes_SOLF0:USTF0_20260107
["timestamp","ask_amount","ask_price","bid_price","bid_amount"]
[1767788307833,0.72123784,137.79,137.73,0.67506216]
[1767788311735,7.25793784,137.79,137.73,0.67506216]
[1767788312743,0.63824828,137.78,137.73,0.67506216]
[1767788319046,0.04691021,137.79,137.74,0.62923266]
[1767788320540,0.04691021,137.79,137.74,7.16793266]
[1767788320743,0.04691021,137.79,137.75,0.62923266]
[1767788322438,0.68515849,137.79,137.74,6.5387]
[1767788322638,0.68515849,137.79,137.73,0.62923266]
[1767788345060,0.65772513,137.85,137.77,1.41780325]
[1767788345262,0.65772513,137.85,137.79,1.41780325]
[1767788345467,0.65772513,137.85,137.79,2.07356628]
[1767788346556,0.65772513,137.85,137.81,0.05288842]
[1767788357465,85.85772513,137.85,137.81,0.05288842]
[1767788359665,91.7333,137.86,137.81,0.6763072]
[1767788359971,92.35178992,137.86,137.81,0.6763072]
[1767788362371,92.35178992,137.86,137.81,0.05288842]
[1767788362973,85.2,137.85,137.81,0.05288842]
[1767788372879,85.2,137.87,137.81,0.67892878]
[1767788373176,2.21395464,137.9,137.83,0.62604036]
[1767788373177,2.87894934,137.9,137.83,0.62604036]
[1767788373375,85.2,137.89,137.83,0.62604036]
[1767788373571,85.8649947,137.89,137.83,0.62604036]
[1767788373975,85.8649947,137.89,137.85,0.05546965]
[1767788374577,0.6649947,137.89,137.85,0.05546965]
[1767788374770,85.8649947,137.89,137.85,0.05546965]
[1767788378681,0.6649947,137.89,137.85,6.58886965]
[1767788378986,85.18,137.9,137.85,7.21491001]
[1767788380079,0.6649947,137.91,137.86,6.5329]
[1767788380286,85.8449947,137.91,137.86,6.5329]
[1767788381686,85.8449947,137.91,137.86,7.15894036]
[1767788383188,2.87894934,137.93,137.87,7.15854036]
[1767788383389,88.05894934,137.93,137.87,7.15854036]
[1767788383574,0.6649947,137.92,137.87,7.15854036]
[1767788383975,0.6649947,137.92,137.89,0.04863693]
[1767788384684,85.8449947,137.94,137.89,0.04863693]
[1767788385084,0.6649947,137.93,137.89,0.04863693]
[1767788385892,6.5283,137.97,137.89,0.67467729]
[1767788385893,85.8449947,137.95,137.89,0.67467729]
[1767788386084,0.6649947,137.94,137.89,0.67467729]
[1767788387591,0.6649947,137.94,137.89,7.20627729]
[1767788389994,85.18,137.95,137.89,7.20627729]
[1767788389995,0.6649947,137.92,137.89,0.04863693]
[1767788390192,0.6649947,137.92,137.83,102.27324036]
[1767788390394,0.6649947,137.92,137.84,0.62604036]
[1767788391089,0.6649947,137.92,137.86,6.533]
[1767788391288,0.6649947,137.92,137.86,7.15904036]
[1767788391890,0.05082375,137.9,137.87,0.62604036]
[1767788392093,85.16,137.93,137.88,0.04600134]
[1767788392296,85.8249947,137.93,137.88,0.04600134]
[1767788393693,0.6649947,137.92,137.88,0.04600134]
[1767788399513,0.6649947,137.92,137.88,6.57810134]
[1767788399704,0.6649947,137.94,137.88,7.2041417]
[1767788399905,0.6649947,137.96,137.88,0.6720417]
[1767788400412,0.6649947,137.96,137.88,0.62604036]
[1767788400614,0.6649947,137.96,137.91,0.055088]
[1767788407517,87.37395464,137.97,137.88,0.62604036]
[1767788407518,0.62807421,137.94,137.88,0.62604036]
[1767788408109,0.62807421,137.94,137.86,85.64]
[1767788408110,0.62807421,137.94,137.86,86.30770315]
[1767788408314,0.62807421,137.93,137.86,86.30770315]
[1767788408613,0.62807421,137.93,137.85,7.20110315]
[1767788409115,0.05257804,137.91,137.86,0.66770315]
[1767788412720,0.68065225,137.91,137.86,0.66770315]
[1767788418115,0.68065225,137.91,137.84,13.99900935]
[1767788418322,0.68065225,137.91,137.84,7.20170315]
[1767788418726,0.62807421,137.9,137.84,0.66770315]
[1767788420830,0.62807421,137.9,137.82,7.46500935]
[1767788421226,0.62807421,137.89,137.82,7.46500935]
[1767788421629,0.05409578,137.87,137.82,7.46500935]
[1767788422128,0.05409578,137.87,137.83,0.66770315]
[1767788422332,0.05409578,137.87,137.84,0.66770315]
[1767788423824,0.62807421,137.91,137.84,0.66770315]
[1767788424128,0.62807421,137.91,137.84,0.72089133]
[1767788424425,0.62807421,137.94,137.86,0.66770315]
[1767788424632,0.62807421,137.94,137.87,0.66770315]
[1767788424828,0.62807421,137.96,137.88,0.66770315]
[1767788425322,0.62807421,137.96,137.89,0.7162755]
[1767788430431,0.62807421,137.96,137.9,0.66770315]
[1767788438537,0.64224901,137.95,137.89,0.04857235]
[1767788439736,0.64224901,137.95,137.89,0.70919035]
[1767788451249,0.64224901,137.95,137.9,0.660618]
[1767788452746,0.64224901,137.95,137.9,7.191818]
[1767788459646,93.10263208,137.98,137.9,6.5312]
[1767788459853,0.64224901,137.97,137.91,0.660618]
[1767788460457,0.64224901,137.97,137.93,0.0544336]
[1767788462058,1.41473208,137.98,137.93,0.6983211]
[1767788462957,0.62256965,137.99,137.93,0.6983211]
[1767788465268,1.41473208,137.98,137.93,0.6983211]
[1767788466969,7.14976965,137.99,137.93,0.6983211]
[1767788467268,8.56450173,137.99,137.93,0.6983211]
[1767788470168,0.6089823,137.96,137.93,0.0544336]
[1767788470368,0.6089823,137.96,137.9,6.77493326]
[1767788470573,2.02371438,137.96,137.9,7.40409845]
[1767788472470,2.02371438,137.96,137.9,0.62916519]
[1767788473677,0.6089823,137.96,137.9,0.62916519]
[1767788473879,2.02371438,137.96,137.9,0.62916519]
[1767788474972,0.04702383,137.97,137.91,0.62916519]
[1767788476477,0.65600613,137.97,137.91,0.62916519]
[1767788480081,0.04702383,137.97,137.93,0.62916519]
[1767788497393,0.04702383,137.97,137.94,0.61997592]
[1767788497591,0.6089823,137.99,137.94,0.67249907]
[1767788497798,0.62937255,138.01,137.94,0.67249907]
[1767788499285,0.62937255,138.01,137.95,0.61997592]
[1767788506794,6.5253,138.03,137.95,0.61997592]
[1767788507000,7.15467255,138.03,137.95,0.61997592]
[1767788507297,7.15467255,138.03,137.96,0.61997592]
[1767788507699,7.15467255,138.03,137.98,0.05020565]
[1767788521605,0.62906648,138.01,137.98,0.05020565]
[1767788521908,0.62906648,138.01,137.92,0.64575073]
[1767788522109,0.61867308,138.0,137.92,0.64575073]
[1767788522301,0.61833475,137.97,137.9,86.24575073]
[1767788522704,0.61833475,137.97,137.9,0.64575073]
[1767788523103,0.0537911,137.95,137.9,0.64575073]
[1767788534822,0.6677944,137.95,137.9,0.64575073]
[1767788535917,0.0537911,137.95,137.9,0.64575073]
[1767788542324,0.0537911,137.95,137.91,0.6346776]
[1767788542915,7.13940536,137.99,137.92,0.68715354]
[1767788543119,0.61210536,137.99,137.92,0.68715354]
[1767788544717,0.61210536,137.99,137.92,0.05247594]
[1767788546626,0.61082983,137.97,137.92,0.05247594]
[1767788556335,2.01630326,137.95,137.88,7.42418837]
[1767788556537,0.55579179,137.94,137.88,0.64591713]
[1767788557739,0.0523484,137.92,137.88,0.64591713]
[1767788574863,0.0523484,137.92,137.87,0.64591713]
[1767788575063,0.0523484,137.92,137.88,0.64591713]
[1767788583169,0.60170938,137.92,137.86,0.63315854]
[1767788583563,0.54913558,137.91,137.86,0.63315854]
[1767788584569,7.08013558,137.91,137.86,0.63315854]
[1767788585170,0.54891419,137.9,137.84,7.41142978]
[1767788585470,0.54891419,137.9,137.84,0.63315854]
[1767788585664,8.49507727,137.9,137.84,0.63315854]
[1767788585866,0.05471933,137.88,137.84,0.63315854]
[1767788588970,0.54963152,137.91,137.84,0.63315854]
[1767788589379,0.54963152,137.91,137.85,0.69090927]
[1767788590578,7.08063152,137.91,137.85,0.69090927]
[1767788594781,0.54963152,137.91,137.85,0.69090927]
[1767788597477,1.41456308,137.92,137.85,0.69090927]
[1767788597668,0.60346306,137.93,137.85,0.69090927]
[1767788598376,0.60346306,137.93,137.87,0.64037149]
[1767788598581,7.13166383,137.97,137.88,1.41456308]
[1767788598882,92.35166383,137.97,137.89,0.64037149]
[1767788599082,7.13166383,137.97,137.89,0.64037149]
[1767788599482,7.13166383,137.97,137.92,0.0496118]
[1767788599683,0.60326406,137.96,137.92,0.0496118]
[1767788605685,0.6026986,137.98,137.92,0.68998329]
[1767788608380,1.41456308,138.0,137.93,0.64037149]
[1767788608585,0.60242753,138.0,137.93,0.64037149]
[1767788609287,0.60242753,138.0,137.95,0.05485929]
[1767788609986,2.01699061,138.0,137.95,0.05485929]
[1767788612492,0.60242753,138.0,137.95,0.05485929]
[1767788613283,0.60242753,138.0,137.93,7.17007149]
[1767788613284,0.59997478,137.99,137.93,0.64037149]
[1767788613480,0.64915195,137.99,137.93,0.64037149]
[1767788613891,0.64915195,137.99,137.91,7.14683681]
[1767788617295,0.64915195,137.99,137.91,0.61623681]
[1767788618294,0.5996959,137.98,137.91,0.61623681]
[1767788619192,0.05411332,137.96,137.91,0.61623681]
[1767788620190,0.65371138,137.96,137.91,0.61623681]
[1767788621794,0.65371138,137.96,137.9,0.61623681]
[1767788625696,0.59929601,137.95,137.88,0.61623681]
[1767788626597,0.05052443,137.93,137.88,0.61623681]
[1767788629996,0.59909681,137.97,137.89,0.61623681]
[1767788630207,0.59909681,137.97,137.89,0.6673272]
[1767788635303,0.59909681,137.97,137.9,0.61623681]
[1767788636195,0.59909681,137.97,137.92,0.05301793]
[1767788638806,6.5279,137.98,137.92,0.66925474]
[1767788639007,0.64556405,137.99,137.92,0.66925474]
[1767788656629,7.17276405,137.99,137.92,0.66925474]
[1767788657528,0.59332694,137.98,137.92,0.66925474]
[1767788657822,6.5272,137.99,137.92,0.05301793]
[1767788657823,0.59332694,137.97,137.92,0.05301793]
[1767788658017,0.59332694,137.97,137.9,0.59446883]
[1767788659420,0.05122167,137.95,137.9,0.59446883]
[1767788676236,7.1711648,137.95,137.9,0.59446883]
[1767788676439,8.58591218,137.95,137.87,6.77363876]
[1767788678332,8.58591218,137.95,137.88,0.6440083]
[1767788680443,2.00559051,137.93,137.86,7.41764706]
[1767788680647,0.59084313,137.92,137.86,0.6440083]
[1767788681346,0.05562779,137.9,137.86,0.6440083]
[1767788689751,0.64647092,137.9,137.83,0.6440083]
[1767788696454,0.05562779,137.9,137.83,0.6440083]
[1767788697548,0.64647092,137.9,137.83,0.6440083]
[1767788699750,2.00559051,137.89,137.83,0.6440083]
[1767788703152,0.05562779,137.9,137.83,0.6440083]
[1767788703355,0.05562779,137.9,137.84,0.64519813]
[1767788703861,0.05562779,137.9,137.85,0.64519813]
[1767788741586,0.71913378,137.9,137.83,0.63441283]
[1767788742189,0.66350599,137.9,137.83,0.63441283]
[1767788743187,7.19490599,137.9,137.83,0.63441283]
[1767788744792,7.19540599,137.89,137.83,0.63441283]
[1767788744995,0.66350599,137.88,137.83,0.63441283]
[1767788751788,0.66350599,137.88,137.81,7.16991283]
[1767788752002,0.66350599,137.88,137.81,0.63441283]
[1767788752200,0.0488948,137.87,137.81,0.63441283]
[1767788762910,0.72699796,137.87,137.77,9.04395354]
[1767788763216,0.72699796,137.87,137.78,0.62851009]
[1767788763217,0.67810316,137.84,137.78,0.62851009]
[1767788763905,0.0518847,137.82,137.78,0.62851009]
[1767788764414,0.67810316,137.85,137.78,0.62851009]
[1767788765719,7.21200316,137.85,137.8,0.05136832]
[1767788767411,0.67810316,137.84,137.8,0.05136832]
[1767788774120,85.99810316,137.84,137.8,0.05136832]
[1767788774323,0.67810316,137.84,137.8,0.05136832]
[1767788774513,85.99810316,137.84,137.8,0.05136832]
[1767788774709,0.67810316,137.84,137.8,0.05136832]
[1767788774914,85.99810316,137.84,137.76,6.5378]
[1767788775116,0.04902864,137.83,137.77,0.62851009]
[1767788778926,0.7271318,137.83,137.77,0.62851009]
[1767788784933,86.0471318,137.83,137.77,0.62851009]
[1767788786533,0.67810316,137.82,137.77,0.62851009]
[1767788789230,0.67810316,137.82,137.76,6.5378]
[1767788789434,0.67810316,137.82,137.73,102.34961009]
[1767788789435,0.67810316,137.82,137.74,6.5386]
[1767788789634,0.67810316,137.8,137.74,6.5386]
[1767788790333,0.05011479,137.78,137.74,7.16711009]
[1767788792236,86.02781636,137.82,137.75,0.66517053]
[1767788792431,0.68781636,137.81,137.75,0.66517053]
[1767788792633,0.68781636,137.81,137.72,7.20467053]
[1767788793335,0.68781636,137.79,137.72,0.66517053]
[1767788793541,0.68781636,137.79,137.75,0.04966441]
[1767788794039,0.68781636,137.79,137.7,7.20577053]
[1767788794040,0.73919354,137.77,137.71,0.66517053]
[1767788794240,0.68781636,137.76,137.68,7.20687053]
[1767788794742,0.68781636,137.76,137.69,0.66517053]
[1767788795442,0.05225967,137.74,137.69,0.66517053]
[1767788797439,0.74007603,137.74,137.65,7.20797053]
[1767788797637,0.68781636,137.72,137.65,7.20797053]
[1767788798238,0.0515153,137.7,137.65,7.20797053]
[1767788798436,0.0515153,137.7,137.66,0.66517053]
[1767788799532,0.73933166,137.7,137.63,7.20907053]
[1767788799739,0.73933166,137.7,137.64,0.66517053]
[1767788801342,7.28013166,137.7,137.64,0.66517053]
[1767788801551,0.73933166,137.7,137.64,0.66517053]
[1767788803237,0.0515153,137.7,137.64,0.66517053]
[1767788804048,2.10685378,137.73,137.65,0.66517053]
[1767788804238,2.10685378,137.73,137.67,0.66517053]
[1767788804544,0.68781636,137.73,137.67,0.66517053]
[1767788806035,1.41903742,137.76,137.68,0.66517053]
[1767788806236,0.68781636,137.77,137.68,0.66517053]
[1767788806748,0.68781636,137.79,137.71,0.66517053]
[1767788806945,0.68781636,137.79,137.71,0.71748191]
[1767788807341,0.68781636,137.79,137.72,0.66517053]
[1767788808344,0.68781636,137.79,137.74,0.05019258]
[1767788811348,0.68781636,137.77,137.72,0.66517053]
[1767788812655,0.68781636,137.77,137.7,0.66517053]
[1767788813249,0.68781636,137.77,137.71,0.66517053]
[1767788813457,0.04996551,137.75,137.71,0.66517053]
[1767788816353,0.73778187,137.75,137.68,0.66517053]
[1767788821056,2.15681929,137.75,137.68,0.66517053]
[1767788822263,0.73778187,137.75,137.68,0.66517053]
[1767788824360,0.73778187,137.75,137.69,0.69464283]
[1767788824361,0.04996551,137.75,137.69,0.69464283]
[1767788824657,2.09651293,137.79,137.7,0.69464283]
[1767788824850,0.67747551,137.79,137.72,0.69464283]
[1767788825455,1.41903742,137.81,137.72,0.69464283]
[1767788825656,0.67747551,137.81,137.72,0.69464283]
[1767788826064,0.67747551,137.8,137.75,0.05218258]
[1767788829467,2.09651293,137.82,137.75,0.74682541]
[1767788829664,0.67747551,137.82,137.75,0.74682541]
[1767788830561,85.38,137.86,137.77,0.69464283]
[1767788830562,2.09651293,137.86,137.77,0.69464283]
[1767788830768,0.67747551,137.86,137.78,0.69464283]
[1767788830974,2.09651293,137.88,137.78,0.69464283]
[1767788831265,0.67747551,137.87,137.8,0.69464283]
[1767788831465,0.67747551,137.87,137.82,0.05362173]
[1767788839962,1.41903742,137.88,137.82,0.74826456]
[1767788840772,2.09651293,137.88,137.82,0.74826456]
[1767788844777,0.67747551,137.87,137.82,0.05362173]
[1767788847373,7.21027551,137.87,137.82,0.05362173]
[1767788847575,0.67747551,137.85,137.78,0.69464283]
[1767788849078,0.05549006,137.83,137.78,0.69464283]
[1767788850676,0.73296557,137.83,137.78,0.69464283]
[1767788858173,0.05549006,137.83,137.78,7.23144283]
[1767788859683,0.05549006,137.83,137.79,0.67976043]
[1767788859883,0.6655102,137.85,137.79,0.67976043]
[1767788860183,0.6655102,137.85,137.79,0.72994219]
[1767788860986,0.6655102,137.85,137.79,7.26634219]
[1767788867279,0.6655102,137.85,137.8,0.67976043]
[1767788867490,0.6655102,137.87,137.8,0.67976043]
[1767788868283,0.6655102,137.87,137.82,0.04815719]
[1767788874292,0.6655102,137.87,137.82,0.72791762]
[1767788875992,0.6655102,137.88,137.82,0.72791762]
[1767788883300,0.6655102,137.88,137.82,0.04815719]
[1767788949953,2.07645698,137.87,137.82,0.04815719]
[1767788955355,0.65979681,137.86,137.82,0.04815719]
[1767788983482,0.65979681,137.86,137.77,101.28115354]
[1767788983681,0.65979681,137.86,137.78,0.68574718]
[1767788984889,0.05419138,137.83,137.78,0.68574718]
[1767788993994,0.05419138,137.83,137.78,7.22264718]
[1767789000294,0.70860761,137.83,137.78,7.22264718]
[1767789001900,0.05419138,137.83,137.79,0.64841353]
[1767789002102,0.65424316,137.85,137.79,0.64841353]
[1767789002303,0.65424316,137.85,137.79,0.70206637]
[1767789003104,0.65424316,137.89,137.8,0.64841353]
[1767789003304,0.65424316,137.89,137.82,0.64841353]
[1767789004005,0.65424316,137.89,137.84,0.69787657]
[1767789010510,0.65424316,137.89,137.84,7.23177657]
[1767789013515,0.65424316,137.94,137.87,0.64841353]
[1767789014308,0.65424316,137.94,137.89,0.04711181]
[1767789036529,2.06967976,137.94,137.89,0.04711181]
[1767789036738,0.67938863,137.93,137.89,0.04711181]
[1767789064147,0.6590814,137.92,137.85,7.20989871]
[1767789064350,0.6590814,137.9,137.83,0.67649871]
[1767789064553,0.6590814,137.88,137.81,9.72045225]
[1767789065242,0.6590814,137.88,137.81,0.67649871]
[1767789065640,0.6590814,137.88,137.81,7.21169871]
[1767789066051,0.6590814,137.88,137.81,0.67649871]
[1767789066244,0.6590814,137.88,137.8,9.04395354]
[1767789066245,0.6590814,137.86,137.8,0.67649871]
[1767789066451,0.05032643,137.86,137.8,0.67649871]
[1767789067550,0.05032643,137.86,137.81,6.5354]
[1767789067753,0.05032643,137.86,137.82,0.67649871]
[1767789068850,2.074518,137.9,137.83,0.67649871]
[1767789069050,2.074518,137.9,137.83,0.72875201]
[1767789069255,0.6590814,137.9,137.83,0.72875201]
[1767789070158,2.074518,137.9,137.83,0.72875201]
[1767789070750,0.6590814,137.89,137.83,0.72875201]
[1767789073252,0.6590814,137.89,137.84,0.67649871]
[1767789098091,0.6590814,137.89,137.83,0.0522533]
[1767789098287,2.074518,137.89,137.83,0.0522533]
[1767789098586,0.70188117,137.88,137.83,0.71909028]
[1767789102390,0.70188117,137.91,137.84,0.66683698]
[1767789103292,0.70188117,137.91,137.86,0.04706124]
[1767789104790,6.5307,137.92,137.86,0.71389822]
[1767789105178,0.70188117,137.93,137.86,0.71389822]
[1767789106185,6.5295,137.94,137.86,0.71389822]
[1767789106392,0.70188117,137.95,137.87,0.66683698]
[1767789106991,0.70188117,137.95,137.9,0.05453659]
[1767789108300,0.70188117,137.93,137.85,7.20023698]
[1767789109598,0.04827696,137.9,137.85,7.20023698]
[1767789112197,0.04827696,137.9,137.83,7.20133698]
[1767789112198,0.75015813,137.9,137.83,7.20133698]
[1767789112388,0.75015813,137.9,137.81,0.66683698]
[1767789112593,0.75015813,137.9,137.81,7.20213698]
[1767789112900,0.70188117,137.9,137.81,7.20213698]
[1767789113794,0.70188117,137.9,137.82,0.66683698]
[1767789116202,7.23348117,137.9,137.82,0.66683698]
[1767789116399,0.70188117,137.89,137.82,0.66683698]
[1767789119196,7.23378117,137.89,137.82,0.66683698]
[1767789119400,0.70188117,137.88,137.82,0.66683698]
[1767789122605,0.65156621,137.87,137.82,0.66683698]
[1767789122803,0.65156621,137.87,137.8,7.23517291]
[1767789124810,0.65156621,137.87,137.81,0.69927291]
[1767789127915,0.65156621,137.87,137.8,6.5359]
[1767789127916,86.03156621,137.91,137.82,0.69927291]
[1767789128105,0.65156621,137.91,137.82,0.69927291]
[1767789128306,0.65156621,137.91,137.85,0.69927291]
[1767789128516,0.65156621,137.93,137.85,0.69927291]
[1767789129717,0.65156621,137.93,137.86,0.69927291]
[1767789137125,6.5296,137.94,137.86,0.69927291]
[1767789137325,0.65156621,137.95,137.87,0.69927291]
[1767789140532,0.65156621,137.95,137.88,0.69927291]
[1767789141431,0.65156621,137.93,137.86,0.69927291]
[1767789143324,7.18156621,137.93,137.86,7.23217291]
[1767789144035,7.18156621,137.93,137.87,7.23197291]
[1767789144537,0.65156621,137.93,137.88,7.23147291]
[1767789144739,0.65156621,137.95,137.89,0.69927291]
[1767789145139,0.05449646,137.92,137.89,0.69927291]
[1767789145632,0.05449646,137.92,137.89,7.23107291]
[1767789148738,0.05449646,137.92,137.87,7.23167291]
[1767789148939,0.70606267,137.92,137.87,7.23167291]
[1767789149141,0.05449646,137.92,137.87,7.23167291]
[1767789149441,0.05449646,137.92,137.88,7.23127291]
[1767789153743,0.05449646,137.92,137.88,0.69927291]
[1767789157543,0.05449646,137.92,137.88,7.23137291]
[1767789157848,0.71099396,137.94,137.89,0.68330453]
[1767789158048,0.71099396,137.94,137.89,0.73115256]
[1767789160448,7.24039396,137.94,137.89,0.73115256]
[1767789164252,0.71099396,137.94,137.89,0.73115256]
[1767789167053,1.41516717,137.95,137.9,0.68330453]
[1767789167255,0.71099396,137.95,137.9,0.68330453]
[1767789170954,0.71099396,137.95,137.9,7.21460453]
[1767789171648,23.55235986,137.97,137.91,0.68330453]
[1767789172355,0.71099396,137.97,137.93,0.04591258]
[1767789173455,8.65366113,137.99,137.93,0.72921711]
[1767789174060,0.71099396,137.99,137.94,0.68330453]
[1767789176657,0.71099396,137.98,137.93,0.04591258]
[1767789176958,0.71099396,137.97,137.93,0.04591258]
[1767789177154,0.71099396,137.97,137.92,0.68330453]
[1767789177560,0.71099396,137.97,137.94,0.0526559]
[1767789178352,2.12616113,137.97,137.94,0.0526559]
[1767789179062,1.41516717,137.97,137.94,0.0526559]
[1767789179658,6.5275,137.98,137.94,0.0526559]
[1767789179862,7.23849396,137.98,137.94,0.0526559]
[1767789182366,6.528,137.97,137.94,0.0526559]
[1767789183267,0.70611066,137.96,137.94,0.0526559]
[1767789183569,2.12127783,137.93,137.88,0.71673724]
[1767789183764,0.70611066,137.92,137.86,0.71673724]
[1767789183964,0.70611066,137.92,137.86,7.24943724]
[1767789184768,1.41516717,137.91,137.86,7.24943724]
[1767789184962,0.05395871,137.9,137.86,7.24943724]
[1767789194280,0.05395871,137.9,137.86,0.71673724]
[1767789194781,0.05395871,137.9,137.83,0.71673724]
[1767789195585,0.05395871,137.9,137.85,7.25043724]
[1767789198784,0.05395871,137.9,137.85,0.71673724]
[1767789199285,0.76006937,137.9,137.85,0.71673724]
[1767789200483,0.70611066,137.89,137.83,7.25093724]
[1767789200884,0.70611066,137.89,137.83,0.71673724]
[1767789201990,7.23791066,137.89,137.83,0.71673724]
[1767789202386,0.70611066,137.87,137.79,0.71673724]
[1767789202784,1.41516717,137.86,137.79,0.71673724]
[1767789203091,2.12127783,137.86,137.79,0.71673724]
[1767789203679,0.0462554,137.84,137.8,7.25273724]
[1767789204797,0.0462554,137.84,137.78,7.25363724]
[1767789204988,2.16753323,137.84,137.78,0.71673724]
[1767789205493,2.12127783,137.84,137.78,0.71673724]
[1767789206285,7.24081066,137.83,137.78,0.71673724]
[1767789206993,0.04816981,137.82,137.78,0.71673724]
[1767789217895,0.70891108,137.81,137.74,0.69103399]
[1767789218089,1.41516717,137.8,137.74,0.69103399]
[1767789218287,2.12407825,137.81,137.74,0.69103399]
[1767789219095,0.04599509,137.79,137.74,0.69103399]
[1767789219793,0.04599509,137.79,137.75,0.69103399]
[1767789233106,0.04599509,137.79,137.74,6.5388]
[1767789233413,0.04599509,137.79,137.74,7.22983399]
[1767789234308,0.04599509,137.79,137.75,0.69103399]
[1767789235305,0.75490617,137.79,137.74,6.5388]
[1767789235501,0.75490617,137.79,137.73,0.69103399]
[1767789235502,7.29160617,137.79,137.73,0.69103399]
[1767789235715,0.70891108,137.78,137.73,0.69103399]
[1767789236106,6.58269509,137.79,137.73,0.69103399]
[1767789236711,0.04599509,137.79,137.74,0.69103399]
[1767789239322,0.75490617,137.79,137.74,0.69103399]
[1767789239917,7.29140617,137.79,137.74,0.69103399]
[1767789240118,6.58249509,137.79,137.74,0.69103399]
[1767789240510,0.04599509,137.79,137.74,0.69103399]
[1767789240906,92.68401108,137.83,137.76,0.69103399]
[1767789241114,6.5351,137.83,137.76,0.69103399]
[1767789242606,6.5351,137.83,137.78,0.70569187]
[1767789245516,7.24301108,137.85,137.78,0.70569187]
[1767789245818,0.70517935,137.84,137.78,0.70569187]
[1767789246014,0.70517935,137.86,137.79,0.65492073]
[1767789246415,0.70517935,137.88,137.81,6.5355]
[1767789246616,0.70517935,137.88,137.82,0.65492073]
[1767789246924,0.70517935,137.9,137.82,0.65492073]
[1767789247518,7.23697935,137.9,137.83,6.5345]
[1767789247721,7.23697935,137.9,137.85,0.04710504]
[1767789247920,0.70517935,137.89,137.81,0.65492073]
[1767789248123,0.75586184,137.88,137.81,0.65492073]
[1767789249616,7.28836184,137.88,137.82,0.66334399]
[1767789257540,0.70099802,137.86,137.79,92.95944399]
[1767789258438,0.05435251,137.84,137.79,92.95944399]
[1767789258841,0.05435251,137.84,137.79,7.19944399]
[1767789261340,0.05435251,137.84,137.8,0.66334399]
[1767789267350,0.05435251,137.84,137.8,7.19934399]
[1767789269844,0.05435251,137.84,137.81,0.66334399]
[1767789272655,0.05435251,137.84,137.76,0.69834988]
[1767789272843,0.05435251,137.84,137.79,7.23474988]
[1767789273047,7.23854347,137.85,137.79,7.23474988]
[1767789273456,0.05030971,137.83,137.79,7.23474988]
[1767789273650,0.05030971,137.83,137.8,0.69834988]
[1767789276151,0.05030971,137.83,137.78,7.23534988]
[1767789276348,0.05030971,137.83,137.78,0.69834988]
[1767789276949,6.5351,137.82,137.78,0.69834988]
[1767789277153,7.23994347,137.82,137.76,0.69834988]
[1767789278051,0.04593829,137.8,137.76,0.69834988]
[1767789279354,0.75078176,137.8,137.74,0.69834988]
[1767789279755,0.70484347,137.8,137.74,0.69834988]
[1767789280057,7.24144347,137.79,137.7,0.69834988]
[1767789280257,0.05516334,137.78,137.7,0.69834988]
[1767789280452,0.76000681,137.78,137.7,0.69834988]
[1767789280657,0.76000681,137.78,137.71,0.69834988]
[1767789281057,0.70484347,137.78,137.71,0.69834988]
[1767789281259,7.24184347,137.78,137.71,7.23864988]
[1767789281552,0.05169661,137.76,137.71,0.69834988]
[1767789282666,0.75654008,137.76,137.68,0.69834988]
[1767789282960,2.12340511,137.75,137.68,0.69834988]
[1767789283346,0.70484347,137.74,137.66,86.43834988]
[1767789283551,2.17073025,137.73,137.66,0.69834988]
[1767789284166,8.71053025,137.73,137.66,7.24094988]
[1767789285255,2.17073025,137.73,137.66,7.24094988]
[1767789287260,2.17073025,137.73,137.67,0.69834988]
[1767789287954,0.04732514,137.73,137.68,0.69834988]
[1767789290468,7.29166861,137.73,137.66,7.24084988]
[1767789291462,0.75216861,137.73,137.67,0.69834988]
[1767789291662,0.04732514,137.73,137.68,0.69834988]
[1767789292070,2.12340511,137.77,137.68,0.69834988]
[1767789292263,0.70484347,137.78,137.7,0.69834988]
[1767789292467,2.12340511,137.78,137.7,0.69834988]
[1767789292662,6.5381,137.76,137.7,0.69834988]
[1767789293575,6.5381,137.76,137.72,0.05392093]
[1767789294067,0.70484347,137.77,137.72,0.05392093]
[1767789294858,0.70484347,137.75,137.72,0.05392093]
[1767789295080,0.70484347,137.75,137.68,0.69834988]
[1767789295771,7.24334347,137.75,137.68,7.24004988]
[1767789296268,0.04606654,137.73,137.68,7.24004988]
[1767789296767,0.04606654,137.73,137.69,0.69834988]
[1767789296970,0.04606654,137.73,137.69,7.23964988]
[1767789297658,0.04606654,137.73,137.7,0.69834988]
[1767789297876,2.12340511,137.77,137.7,0.69834988]
[1767789298170,2.12340511,137.77,137.7,0.74604999]
[1767789298570,6.538,137.76,137.7,0.74604999]
[1767789300669,1.41856164,137.77,137.71,0.65315166]
[1767789300865,6.5374,137.78,137.71,0.65315166]
[1767789301360,2.09072408,137.79,137.73,0.65315166]
[1767789301758,0.67216244,137.79,137.73,0.65315166]
[1767789301958,0.67216244,137.79,137.73,7.19245166]
[1767789302270,2.08371302,137.81,137.74,0.67702182]
[1767789302470,2.08371302,137.81,137.75,0.0487823]
[1767789303669,0.66515138,137.79,137.75,0.0487823]